Cogmind - Beta 13 @@@ ROGUE MODE // 2024.07.08 @ 12:56:17 Player: SyrupyWaffles Result: Destroyed by as-37561 with Assembled Rifle Performance ------------- Evolutions (0) 0 Regions Visited (2) 400 Robots Destroyed (9) 45 Value Destroyed (203) 203 Prototype IDs (0) 0 Alien Tech Used (0) 0 Bonus (-170) -170 TOTAL SCORE: 478 Bonus ------- Friendly Fire -170 Cogmind --------- Core Integrity 0/250 Matter 202/300 Energy 125/125 System Corruption 5% Temperature Cool (0) Movement Core (250) Ox4 Location -10/Mines Parts ------- > --- POWER (1) -------- Light Ion Engine > --- PROPULSION (2) --- (None) > --- UTILITY (2) ------ Medium Storage Unit > --- WEAPON (2) ------- Light Assault Rifle Datajack > --- INVENTORY (10) --- Heat Sink Large Matter Pod (41) Visual Processing Unit Signal Interpreter Targeting Computer Utility Shielding Bomb Drone Bay Peak State ------------ > --- POWER ------------ Light Ion Engine > --- PROPULSION ------- Light Treads Light Treads > --- UTILITY ---------- Medium Storage Unit Signal Interpreter > --- WEAPON ----------- Assault Rifle Assault Rifle > --- INVENTORY -------- Aluminum Leg Flight Unit Small Storage Unit Medium Matter Pod Large Matter Pod Visual Processing Unit Small Laser Grenade Launcher Datajack [Rating: 8] Favorites ----------- Power Light Ion Engine Engine Light Ion Engine Propulsion Light Treads Treads Light Treads Flight Unit Flight Unit Utility Signal Interpreter Storage Medium Storage Unit Processor Signal Interpreter Weapon Assault Rifle Ballistic Gun Assault Rifle Launcher Grenade Launcher Special Melee Weapon Datajack Build | -11 -10 -10 ------- Run | Yrd Mat Min Slots Evolved . | . . . Power . | . . . Propulsion . | . . . Utility . | . . . Weapon . | . . . Parts Attached 21 | 6 11 4 Power 4 | 1 2 1 Engine 4 | 1 2 1 Core . | . . . Reactor . | . . . Propulsion 7 | 2 5 . Treads 5 | 2 3 . Leg . | . . . Wheel . | . . . Hover . | . . . Flight 2 | . 2 . Utility 3 | 1 2 . Device . | . . . Storage 2 | 1 1 . Processor 1 | . 1 . Hackware . | . . . Protection . | . . . Artifact . | . . . Weapon 7 | 2 2 3 Energy Gun . | . . . Energy Cannon . | . . . Ballistic Gun 5 | 2 2 1 Ballistic Cannon . | . . . Launcher 1 | . . 1 Special Weapon . | . . . Impact Weapon . | . . . Slashing Weapon . | . . . Piercing Weapon . | . . . Special Melee Weapon 1 | . . 1 Unidentified Prototypes . | . . . Parts Lost 6 | . . 6 Power 1 | . . 1 Propulsion 2 | . . 2 Utility 1 | . . 1 Weapon 2 | . . 2 Highest Loss Streak 4 | . . 4 To Critical Strikes . | . . . Average Slot Usage (%) 93 | . 98 72 Engine 13 | . 13 11 Treads 10 | . 13 . Flight 13 | . 13 14 Storage 14 | . 14 14 Processor 12 | . 13 8 Ballistic Gun 25 | . 27 18 Naked Turns . | . . . Heaviest Build 19 | 12 19 19 Greatest Support 40 | 40 40 8 Greatest Overweight (x) 4 | . 2 4 Average Overweight (x) 1 | . . 2 Largest Inventory Capacity 10 | 8 10 10 Average Capacity 9 | 7 9 10 Most Carried 10 | 8 10 10 Average Carried 7 | 5 7 9 Final Capacity 10 | 8 10 10 Final Carried 10 | 6 10 8 Class Distribution -------------------- 100% | Mutant Dominant Class ---------------- Mutant | -10/Materials Mutant | -10/Mines Resources | -11 -10 -10 ----------- Run | Yrd Mat Min Matter Collected 641 | 245 310 86 Remotely . | . . . Salvage Created 333 | . 235 98 Parts 18 | . 15 3 Haulers Intercepted . | . . . Recyclers Shooed . | . . . Parts Field Recycled . | . . . Retrieved Matter . | . . . Parts Self-Destructed . | . . . Prevented . | . . . Kills | -11 -10 -10 ------- Run | Yrd Mat Min Combat Hostiles Destroyed 8 | . 4 4 Guns 6 | . 4 2 AOE 2 | . . 2 Classes Destroyed 4 | . 2 2 Recycler 1 | . . 1 Watcher 3 | . 3 . Grunt 4 | . 4 . Assembled 4 | . . 4 Thug 1 | . . 1 Best Kill Streak 4 | . 2 4 Combat Bots Only 3 | . 2 3 Max Kills in Single Turn 1 | . 1 1 Gunslinging . | . . . Exploded 1 | . . 1 Melee . | . . . Uniques/NPCs Destroyed . | . . . Combat | -11 -10 -10 -------- Run | Yrd Mat Min Hostile Shots Fired 67 | . 40 27 Missed 23 | . 14 9 Damage Taken 739 | . 320 419 Core 254 | . 93 161 Absorbed by Shields . | . . . Core Remaining (%) 100 | 100 . . Volleys Fired 74 | . 29 45 Largest 2 | . 2 2 Hottest 50 | . 40 50 Shots Fired 113 | . 58 55 Gun 107 | . 58 49 Cannon . | . . . Launcher 6 | . . 6 Special . | . . . Kinetic 107 | . 58 49 Thermal . | . . . Explosive 6 | . . 6 Electromagnetic . | . . . Robot Hit Streak 5 | . 5 5 Robot Miss Streak 6 | . 5 6 Penetration Max . | . . . Secondary Targets 2 | . 2 . Max Gunslinging Chain 1 | . 1 . Shots Hit Robots 53 | . 27 26 Core Hits 28 | . 13 15 Critical Kills . | . . . Critical Parts Destroyed . | . . . Critical Strikes . | . . . Melee Attacks . | . . . Impact . | . . . Slashing . | . . . Piercing . | . . . Sneak Attacks . | . . . Combat Hostiles . | . . . Follow-up Attacks . | . . . Damage Inflicted 820 | . 322 498 Guns 573 | . 322 251 Cannons . | . . . Explosions 247 | . . 247 Melee . | . . . Ramming . | . . . Kinetic 573 | . 322 251 Thermal . | . . . Explosive 247 | . . 247 Electromagnetic . | . . . Impact . | . . . Slashing . | . . . Piercing . | . . . Highest Corruption 5 | . . 5 Average Corruption 4 | . . 4 Corruption Purged . | . . . Corruption Blocked . | . . . Effects 4 | . . 4 Matter Fused 1 | . . 1 Energy Discharges 1 | . . 1 Data Loss (minor) 1 | . . 1 Misfires 1 | . . 1 Overload Shots . | . . . Overflow Damage 12 | . . 12 Projectiles . | . . . Explosions 12 | . . 12 Melee . | . . . Knockbacks . | . . . Impact . | . . . Kinetic . | . . . Secondary . | . . . Self-Inflicted Damage 92 | . . 92 Shots 3 | . . 3 Rammed . | . . . Targets Rammed . | . . . Kicked . | . . . Crushed . | . . . Highest Temperature 24 | . 9 24 Average Temperature 6 | . 2 10 Received Heat Transfer 257 | . 177 80 Siege Activations . | . . . Robots Corrupted . | . . . Combat Hostiles . | . . . Parts Fried . | . . . Impact Corruptions . | . . . Robots Melted . | . . . Combat Hostiles . | . . . Parts Melted . | . . . Heat Transferred . | . . . Parts Sabotaged . | . . . Parts Stolen . | . . . Parts Stripped . | . . . Power Chain Reactions . | . . . Alert | -11 -10 -10 ------- Run | Yrd Mat Min Peak Influence 109 | . 109 11 Initial 8 | . . 8 Average 21 | . 30 3 Maximum Alert Level . | . . . Low Security (%) 100 | 100 100 100 Level 1 . | . . . Level 2 . | . . . Level 3 . | . . . Level 4 . | . . . Level 5 . | . . . High Security . | . . . Max Security . | . . . Squads Dispatched 1 | . 1 . Investigation 1 | . 1 . Extermination . | . . . Reinforcement . | . . . Assault . | . . . Garrison . | . . . Intercept . | . . . Searches Triggered . | . . . Construction Impeded . | . . . Haulers Reinforced . | . . . Active Scanning Responses . | . . . Cargo Convoy Interrupts . | . . . Stealth | -11 -10 -10 --------- Run | Yrd Mat Min Distress Signals 1 | . 1 . Communications Jammed . | . . . Distress Signals . | . . . Times Spotted 18 | . 11 7 Peak Tracking Total 3 | . 3 3 Tactical Retreats 2 | . 1 1 Traps | -11 -10 -10 ------- Run | Yrd Mat Min Traps Triggered 4 | . 4 . Indirectly . | . . . Trap Hack Attempts . | . . . Triggered . | . . . Disarmed . | . . . Reprogrammed . | . . . Reused . | . . . Traps Extracted . | . . . Installed . | . . . Triggered . | . . . Machines | -11 -10 -10 ---------- Run | Yrd Mat Min Machines Disabled . | . . . Max in Single Turn . | . . . Machines Repaired . | . . . Machines Dismantled . | . . . Machines Sabotaged . | . . . Overloaded Fab Kills . | . . . Hacking | -11 -10 -10 --------- Run | Yrd Mat Min Machines Accessed 3 | . 2 1 Terminals 1 | . 1 . Fabricators . | . . . Repair Stations . | . . . Recycling Units 1 | . 1 . Scanalyzers . | . . . Garrison Access . | . . . Total Hacks 3 | . 2 1 Successful 3 | . 2 1 Failed . | . . . Catastrophic . | . . . Database Lockouts . | . . . Manual . | . . . Terminals 1 | . 1 . Fabricators . | . . . Repair Stations . | . . . Recycling Units 1 | . 1 . Scanalyzers . | . . . Garrison Access . | . . . Terminal Hacks 2 | . 1 1 Record 1 | . 1 . Open Door 1 | . . 1 Fabricator Hacks . | . . . Repair Station Hacks . | . . . Recycling Unit Hacks 1 | . 1 . Recycle Component 1 | . 1 . Scanalyzer . | . . . Garrison Access Hacks . | . . . Unauthorized Hacks . | . . . Terminals . | . . . Fabricators . | . . . Repair Stations . | . . . Recycling Units . | . . . Scanalyzers . | . . . Garrison Access . | . . . Data Cores Recovered . | . . . Used . | . . . Hacking Detections . | . . . Full Trace Events . | . . . Feedback Events . | . . . Feedback Blocked . | . . . Robot Schematics Acquired . | . . . Robots Built . | . . . Authchips . | . . . Time . | . . . Total Robot Build Rating . | . . . Part Schematics Acquired . | . . . Parts Built . | . . . Authchips . | . . . Time . | . . . Total Part Build Rating . | . . . Parts Repaired . | . . . Time . | . . . Parts Recycled 1 | . 1 . Recycled Matter . | . . . Retrieved Matter . | . . . Retrieved Components . | . . . Parts Scanalyzed . | . . . Part Schematics Acquired . | . . . Parts Damaged . | . . . Bothacking | -11 -10 -10 ------------ Run | Yrd Mat Min Used RIF Installer . | . . . Robots Hacked . | . . . Non-combat . | . . . Combat . | . . . Robot Hacks Applied . | . . . Relay Couplers Released . | . . . Fabnet Peak Effective % . | . . . Robots Rewired . | . . . Allies Hacked . | . . . Hacks Repelled . | . . . Allies | -11 -10 -10 -------- Run | Yrd Mat Min Total Allies . | . . . Largest Group . | . . . Highest-Rated Group . | . . . Highest-Rated Ally . | . . . Total Orders . | . . . Ally Attacks . | . . . Total Damage . | . . . Kills . | . . . Allies Corrupted . | . . . Allies Melted . | . . . Intel | -11 -10 -10 ------- Run | Yrd Mat Min Robot Analysis Total . | . . . Derelict Logs Recovered . | . . . Drone Launches . | . . . Drone Recoveries . | . . . Exploration | -11 -10 -10 ------------- Run | Yrd Mat Min Turns Passed 1712 | 186 1196 330 Spaces Moved 825 | 119 605 101 Core 51 | 19 3 29 Treads 431 | 100 331 . Legs . | . . . Wheels . | . . . Hover . | . . . Flight 343 | . 271 72 Fastest Speed 50 | 50 150 197 Average Speed 178 | 142 176 229 Slowest Speed 360 | 160 197 360 Overloaded Moves . | . . . Propulsion Burnouts . | . . . Robots Hopped . | . . . Cave-ins Triggered . | . . . Exploration Rate (%) 32 | 7 75 15 Regions Visited 2 Branch Regions 1 Pre-discovered Areas . | . . . Known Exits Taken 1 | . 1 . Unknown Exits Taken 1 | 1 . . Scrap Searched . | . . . Spaces Dug . | . . . Terrain Destroyed 40 | . . 40 Melee . | . . . Projectile . | . . . AOE 40 | . . 40 Terrain Rammed . | . . . Walls Destroyed . | . . . Machines Disabled . | . . . Actions | -11 -10 -10 --------- Run | Yrd Mat Min Total 970 | 136 682 152 Wait . | . . . Move 823 | 118 604 101 Hop . | . . . Pick Up 38 | 12 25 1 Fast Attach . | . . . Attach 16 | 6 7 3 Detach . | . . . Swap 5 | . 4 1 Drop 14 | . 13 1 Fire 74 | . 29 45 Melee . | . . . Ram . | . . . Kick . | . . . Crush . | . . . Escape Stasis . | . . . Rewire . | . . . Trap . | . . . Miscellaneous . | . . . Route ------- -11/Scrapyard -10/Materials (discovered 2 exits: [*Mat] / *Min) -10/Mines History --------- Turn | Location | Event 8 | -11/Scrapyard | Discovered new exit (range 15) 187 | -11/Scrapyard | Entered Materials 306 | -10/Materials | Build established: Mutant 849 | -10/Materials | Discovered new exit (range 16) 996 | -10/Materials | Discovered new exit (range 7) 1381 | -10/Materials | Identified exit to Mines 1383 | -10/Materials | Entered Mines 1394 | -10/Mines | Assembled infested the area 1446 | -10/Mines | Found the Drone Emporium 1472 | -10/Mines | Met a Derelict bent on vengeance 1474 | -10/Mines | Core integrity fell below 50% 1555 | -10/Mines | Found Prototype Device 1596 | -10/Mines | Core integrity fell below 20% 1627 | -10/Mines | Lost 4 parts (1p1n1u1w) 1713 | -10/Mines | Destroyed by as-37561 with Assembled Rifle Last Messages --------------- K-01 Serf collects debris. System corrupted: Matter fused (-5). U-05 Engineer builds a Wall. K-01 Serf collects debris. Acquired 12 matter. K-01 Serf collects debris. U-05 Engineer builds a Wall. K-01 Serf collects debris. U-05 Engineer builds a Wall. K-01 Serf collects debris. U-05 Engineer lays Concrete. Acquired 24 matter. K-01 Serf collects debris. System corrupted: Component data lost. The unstable cave ceiling collapses. U-05 Engineer builds a Wall. System corrupted: Energy discharge (-40). The unstable cave ceiling collapses. Connecting with SHOP.Sys... The unstable cave ceiling collapses. Map ----- +----------------------------------------------------+ | | | | | | | | | | | | | | | | | | | | | | | | | ?????????????????????????????????????????????????? | | ?###?????????????????????????????????????????????? | | ## #????????????????????????????????????????????? | | # #???????????????????????????????????????????? | | ? #####??????????????????????????????????????? | | ?? ##?????????????????????????????????????? | | ??? #?????######??????????????????????????? | | ???# #??### # # ###????????#???????????????? | | ???# #??###### #??????? #???????????????? | | ???# #???# # ##?????? #####???????????? | | ???# #????# #????? r ????????????? | | ???# ####?# ##### #???????????????? | | ???# #?# #####???????????? | | # ## #?## #X @ a #???????????? | | # ## ## #??## # < a##??????????????? | | ??# ## #??## ## # ##???????????????? | | ???### ### ###### # ### # #????????????????? | | ?????# #?# #?### # # # ###????????????????? | | ?????# #?#### #### # ###??????????????????? | | ????? ????# ### u # #????????????????????? | | ?????###????# ## # #????????????????????? | | ????????????# # ## ####????????????????????? | | ????????????# ### ## ####??????????????????????? | | ????????????# # ## # ## #????????????????????????? | | ????????????# # # ## ##????????????????????????? | | ????????????# ####%# ###?????????????????????????? | | ???????????? ?? # #??????????????????????????? | | ????????????###??## #??????????????????????????? | | ???????????????????# ##??????????????????????????? | | ???????????????????? #???????????????????????????? | | ????????????????????##???????????????????????????? | | ?????????????????????????????????????????????????? | | ?????????????????????????????????????????????????? | | ?????????????????????????????????????????????????? | | ?????????????????????????????????????????????????? | | ?????????????????????????????????????????????????? | | ?????????????????????????????????????????????????? | | ?????????????????????????????????????????????????? | +----------------------------------------------------+ Best States ------------- Heat Dissipation 25 Energy Generation 10 Energy Capacity 250 Matter Stores 300 Matter Capacity 300 Sight Range 16 Terrain Scan Density 10 Evasion (%) 50 Recoil Reduction 2 Item Schematics ----------------- None Robot Schematics ------------------ None Fabricated ------------ Nothing Alien Tech Used ----------------- None Achievements -------------- Backstab Let's See Who's Tougher Storm Trooper Challenges ------------ None Game ------ Seed BlastLightningField Manual? 0 Play Time 00:13:07 Cumulative 0.8 hours Start 2024.07.08 @ 12:43:25 End 2024.07.08 @ 12:56:17 Sessions 1 Manual Loads 0 Difficulty Rogue Special Mode None Game No. 3 Rogue 3 Adventurer 0 Explorer 0 Win Type - Total 0 Types 0/0/0/0/0/0/0/0/0 Lore% 0 Gallery% 2 Achievement% 3 Wizard Run 0 Options --------- Layout 1 ASCII 0 Keyboard 0 Movement Arrows Keybinds 0 Fullscreen 1 Font 32/Tamsyn Map View 50x35 Zoom Use 0% Tactical HUD 0 Map Filters NONE Filters NONE Steam 1 RUN: 2505e96b-e2da-4c3e-a622-20ed7afd1d6d